[Event "FIDE Grand Swiss 2023"]
[Site "Villa Marina, Douglas, Isle of Man, Isle Of Man"]
[Date "2023.11.04"]
[Round "10.3"]
[White "Esipenko, Andrey"]
[Black "Maghsoodloo, Parham"]
[Result "1-0"]
[TimeControl "40/90 + 30 + 30s/move"]
[WhiteFideId "24175439"]
[BlackFideId "12539929"]
[WhiteElo "2683"]
[BlackElo "2707"]

1. d4 {[%clk 01:40:51]} {[%emt 00:00:08]} Nf6 {[%clk 01:40:54]} {[%emt
00:00:06]} 2. c4 {[%clk 01:41:07]} {[%emt 00:00:15]} e6 {[%clk 01:41:17]}
{[%emt 00:00:07]} 3. g3 {[%clk 01:41:21]} {[%emt 00:00:15]} d5 {[%clk
01:41:17]} {[%emt 00:00:30]} 4. Nf3 {[%clk 01:41:43]} {[%emt 00:00:08]} Bb4+
{[%clk 01:41:42]} {[%emt 00:00:05]} 5. Bd2 {[%clk 01:42:06]} {[%emt 00:00:07]}
Be7 {[%clk 01:42:07]} {[%emt 00:00:05]} 6. Bg2 {[%clk 01:42:28]} {[%emt
00:00:08]} O-O {[%clk 01:42:32]} {[%emt 00:00:06]} 7. O-O {[%clk 01:42:23]}
{[%emt 00:00:35]} h6 {[%clk 01:42:52]} {[%emt 00:00:10]} 8. Qc2 {[%clk
01:39:08]} {[%emt 00:03:44]} c6 {[%clk 01:43:15]} {[%emt 00:00:07]} 9. Bf4
{[%clk 01:38:23]} {[%emt 00:01:16]} Nbd7 {[%clk 01:43:27]} {[%emt 00:00:17]} 10.
Rd1 {[%clk 01:38:33]} {[%emt 00:00:21]} a5 {[%clk 01:43:41]} {[%emt 00:00:15]}
11. Nc3 {[%clk 01:35:14]} {[%emt 00:03:49]} b6 {[%clk 01:43:58]} {[%emt
00:00:14]} 12. Ne5 {[%clk 01:15:35]} {[%emt 00:20:08]} Nxe5 {[%clk 01:44:22]}
{[%emt 00:00:06]} 13. dxe5 {[%clk 01:15:15]} {[%emt 00:00:50]} Nd7 {[%clk
01:44:46]} {[%emt 00:00:06]} 14. cxd5 {[%clk 01:11:12]} {[%emt 00:04:33]} cxd5
{[%clk 01:45:11]} {[%emt 00:00:06]} 15. e4 {[%clk 01:05:28]} {[%emt 00:06:13]}
d4 {[%clk 01:45:30]} {[%emt 00:00:12]} 16. Rxd4 {[%clk 00:53:05]} {[%emt
00:12:53]} Bc5 {[%clk 01:33:58]} {[%emt 00:12:01]} 17. Rdd1 {[%clk 00:52:30]}
{[%emt 00:01:06]} g5 {[%clk 01:34:22]} {[%emt 00:00:06]} 18. Bc1 {[%clk
00:50:40]} {[%emt 00:02:20]} Qc7 {[%clk 01:21:52]} {[%emt 00:12:59]} 19. Na4
{[%clk 00:49:14]} {[%emt 00:01:55]} Qxe5 {[%clk 01:22:15]} {[%emt 00:00:08]} 20.
Nxc5 {[%clk 00:48:10]} {[%emt 00:01:35]} Nxc5 {[%clk 01:15:16]} {[%emt
00:07:29]} 21. Be3 {[%clk 00:44:48]} {[%emt 00:03:51]} Ba6 {[%clk 01:11:33]}
{[%emt 00:04:14]} 22. Bd4 {[%clk 00:43:19]} {[%emt 00:01:58]} Qc7 {[%clk
01:09:57]} {[%emt 00:02:06]} 23. Qc3 {[%clk 00:42:14]} {[%emt 00:01:34]} Kh7
{[%clk 01:04:10]} {[%emt 00:06:18]} 24. Be5 {[%clk 00:33:17]} {[%emt 00:09:27]}
Qa7 {[%clk 01:04:26]} {[%emt 00:00:15]} 25. Qf3 {[%clk 00:32:50]} {[%emt
00:00:54]} Rg8 {[%clk 00:54:42]} {[%emt 00:10:17]} 26. Rd6 {[%clk 00:31:22]}
{[%emt 00:01:56]} g4 {[%clk 00:51:12]} {[%emt 00:04:01]} 27. Qe3 {[%clk
00:29:37]} {[%emt 00:02:14]} Rad8 {[%clk 00:48:27]} {[%emt 00:03:15]} 28. Rad1
{[%clk 00:21:16]} {[%emt 00:08:53]} Qe7 {[%clk 00:44:27]} {[%emt 00:04:29]} 29.
h3 {[%clk 00:13:00]} {[%emt 00:08:46]} Rxd6 {[%clk 00:34:03]} {[%emt 00:10:54]}
30. Bxd6 {[%clk 00:12:28]} {[%emt 00:01:02]} Qg5 {[%clk 00:32:52]} {[%emt
00:01:42]} 31. Bf4 {[%clk 00:11:52]} {[%emt 00:01:06]} Qg7 {[%clk 00:32:32]}
{[%emt 00:00:48]} 32. Rd6 {[%clk 00:11:59]} {[%emt 00:00:23]} Qxb2 {[%clk
00:31:21]} {[%emt 00:01:41]} 33. hxg4 {[%clk 00:12:05]} {[%emt 00:00:25]} Rxg4
{[%clk 00:28:18]} {[%emt 00:03:34]} 34. Bf3 {[%clk 00:11:26]} {[%emt 00:01:08]}
h5 {[%clk 00:24:44]} {[%emt 00:04:04]} 35. Rd4 {[%clk 00:07:17]} {[%emt
00:04:36]} Bb7 {[%clk 00:21:23]} {[%emt 00:03:54]} 36. Kh2 {[%clk 00:04:56]}
{[%emt 00:02:50]} Qb1 {[%clk 00:10:54]} {[%emt 00:11:01]} 37. Be5 {[%clk
00:02:37]} {[%emt 00:02:48]} Bxe4 {[%clk 00:03:08]} {[%emt 00:08:17]} 38. Rd1
{[%clk 00:02:37]} {[%emt 00:00:29]} Qc2 {[%clk 00:01:14]} {[%emt 00:02:25]} 39.
Bxg4 {[%clk 00:02:30]} {[%emt 00:00:36]} hxg4 {[%clk 00:00:32]} {[%emt
00:01:13]} 40. Rd8 {[%clk 00:02:16]} {[%emt 00:00:43]} 1-0

[Event "FIDE Grand Swiss 2023"]
[Site "Villa Marina, Douglas, Isle of Man, Isle Of Man"]
[Date "2023.11.04"]
[Round "10.11"]
[White "Anton Guijarro, David"]
[Black "Duda, Jan-Krzysztof"]
[Result "1/2-1/2"]
[TimeControl "40/90 + 30 + 30s/move"]
[WhiteFideId "2285525"]
[BlackFideId "1170546"]
[WhiteElo "2653"]
[BlackElo "2726"]

1. d4 {[%clk 01:40:54]} {[%emt 00:00:05]} Nf6 {[%clk 01:40:55]} {[%emt
00:00:05]} 2. c4 {[%clk 01:41:13]} {[%emt 00:00:11]} e6 {[%clk 01:41:21]}
{[%emt 00:00:04]} 3. Nc3 {[%clk 01:41:22]} {[%emt 00:00:21]} Bb4 {[%clk
01:41:44]} {[%emt 00:00:07]} 4. e3 {[%clk 01:41:27]} {[%emt 00:00:24]} c5
{[%clk 01:41:58]} {[%emt 00:00:17]} 5. Nge2 {[%clk 01:41:05]} {[%emt 00:00:53]}
cxd4 {[%clk 01:40:38]} {[%emt 00:01:50]} 6. exd4 {[%clk 01:41:05]} {[%emt
00:00:29]} d5 {[%clk 01:41:01]} {[%emt 00:00:07]} 7. c5 {[%clk 01:40:04]}
{[%emt 00:01:31]} Ne4 {[%clk 01:41:08]} {[%emt 00:00:23]} 8. a3 {[%clk
01:39:42]} {[%emt 00:00:52]} Nxc3 {[%clk 01:33:12]} {[%emt 00:08:26]} 9. Nxc3
{[%clk 01:39:44]} {[%emt 00:00:28]} Bxc3+ {[%clk 01:33:38]} {[%emt 00:00:05]}
10. bxc3 {[%clk 01:40:08]} {[%emt 00:00:06]} O-O {[%clk 01:34:00]} {[%emt
00:00:07]} 11. Bd3 {[%clk 01:40:15]} {[%emt 00:00:23]} Qh4 {[%clk 01:31:51]}
{[%emt 00:02:40]} 12. Rb1 {[%clk 01:24:37]} {[%emt 00:16:08]} b6 {[%clk
01:30:09]} {[%emt 00:02:12]} 13. cxb6 {[%clk 01:23:15]} {[%emt 00:01:51]} axb6
{[%clk 01:29:17]} {[%emt 00:01:23]} 14. Rxb6 {[%clk 01:21:51]} {[%emt
00:01:54]} Nd7 {[%clk 01:29:39]} {[%emt 00:00:07]} 15. Rb4 {[%clk 01:18:34]}
{[%emt 00:03:47]} Ba6 {[%clk 01:29:50]} {[%emt 00:00:19]} 16. O-O {[%clk
01:17:42]} {[%emt 00:01:21]} Rfc8 {[%clk 01:29:49]} {[%emt 00:00:32]} 17. Qe2
{[%clk 01:12:38]} {[%emt 00:05:34]} Bxd3 {[%clk 01:28:15]} {[%emt 00:02:04]} 18.
Qxd3 {[%clk 01:13:04]} {[%emt 00:00:05]} Qd8 {[%clk 01:24:53]} {[%emt
00:03:52]} 19. c4 {[%clk 01:04:11]} {[%emt 00:09:23]} dxc4 {[%clk 01:24:39]}
{[%emt 00:00:44]} 20. Rxc4 {[%clk 01:04:14]} {[%emt 00:00:26]} Rxc4 {[%clk
01:24:26]} {[%emt 00:00:44]} 21. Qxc4 {[%clk 01:04:39]} {[%emt 00:00:05]} Nb6
{[%clk 01:24:47]} {[%emt 00:00:08]} 22. Qb3 {[%clk 01:02:15]} {[%emt 00:02:54]}
Nd5 {[%clk 01:24:08]} {[%emt 00:01:09]} 23. Bd2 {[%clk 00:58:51]} {[%emt
00:03:54]} Qd7 {[%clk 01:07:00]} {[%emt 00:17:38]} 24. Rb1 {[%clk 00:55:19]}
{[%emt 00:04:02]} h5 {[%clk 01:04:03]} {[%emt 00:03:28]} 25. Qf3 {[%clk
00:52:19]} {[%emt 00:03:29]} Qa7 {[%clk 01:03:26]} {[%emt 00:01:08]} 26. Qxh5
{[%clk 00:42:20]} {[%emt 00:10:28]} Qxa3 {[%clk 01:02:33]} {[%emt 00:01:23]} 27.
Qe2 {[%clk 00:40:32]} {[%emt 00:02:18]} Nc3 {[%clk 00:58:14]} {[%emt 00:04:50]}
28. Bxc3 {[%clk 00:40:27]} {[%emt 00:00:34]} Qxc3 {[%clk 00:58:40]} {[%emt
00:00:04]} 29. Rd1 {[%clk 00:36:08]} {[%emt 00:04:49]} Rd8 {[%clk 00:55:02]}
{[%emt 00:04:08]} 30. Qe3 {[%clk 00:32:57]} {[%emt 00:03:41]} Qc2 {[%clk
00:55:07]} {[%emt 00:00:26]} 31. Qd2 {[%clk 00:31:34]} {[%emt 00:01:52]} Qxd2
{[%clk 00:55:13]} {[%emt 00:00:25]} 32. Rxd2 {[%clk 00:31:58]} {[%emt
00:00:06]} Rd5 {[%clk 00:55:38]} {[%emt 00:00:04]} 33. f4 {[%clk 00:31:52]}
{[%emt 00:00:36]} f6 {[%clk 00:54:58]} {[%emt 00:01:11]} 34. Kf2 {[%clk
00:32:13]} {[%emt 00:00:09]} e5 {[%clk 00:55:23]} {[%emt 00:00:05]} 35. Ke3
{[%clk 00:32:27]} {[%emt 00:00:15]} exd4+ {[%clk 00:55:49]} {[%emt 00:00:05]}
36. Rxd4 {[%clk 00:32:53]} {[%emt 00:00:04]} Rh5 {[%clk 00:56:13]} {[%emt
00:00:05]} 37. h3 {[%clk 00:33:17]} {[%emt 00:00:06]} Kh7 {[%clk 00:56:30]}
{[%emt 00:00:14]} 38. Kf3 {[%clk 00:33:04]} 1/2-1/2

[Event "FIDE Grand Swiss 2023"]
[Site "Villa Marina, Douglas, Isle of Man, Isle Of Man"]
[Date "2023.11.04"]
[Round "10.20"]
[White "Nihal, Sarin"]
[Black "Najer, Evgeniy"]
[Result "1/2-1/2"]
[TimeControl "40/90 + 30 + 30s/move"]
[WhiteFideId "25092340"]
[BlackFideId "4118987"]
[WhiteElo "2694"]
[BlackElo "2648"]

1. Nf3 {[%clk 01:40:31]} {[%emt 00:00:28]} d5 {[%clk 01:40:54]} {[%emt
00:00:08]} 2. d4 {[%clk 01:40:54]} {[%emt 00:00:06]} Nf6 {[%clk 01:41:20]}
{[%emt 00:00:04]} 3. c3 {[%clk 01:41:17]} {[%emt 00:00:06]} c6 {[%clk
01:36:04]} {[%emt 00:05:48]} 4. Bf4 {[%clk 01:38:27]} {[%emt 00:03:18]} Bf5
{[%clk 01:31:06]} {[%emt 00:05:28]} 5. Nh4 {[%clk 01:38:28]} {[%emt 00:00:29]}
Be4 {[%clk 01:22:27]} {[%emt 00:09:10]} 6. Nd2 {[%clk 01:38:27]} {[%emt
00:00:30]} e6 {[%clk 01:22:28]} {[%emt 00:00:30]} 7. Qb3 {[%clk 01:31:37]}
{[%emt 00:07:20]} b6 {[%clk 01:09:14]} {[%emt 00:13:45]} 8. e3 {[%clk
01:25:14]} {[%emt 00:06:51]} Bd6 {[%clk 01:06:33]} {[%emt 00:03:12]} 9. Bg5
{[%clk 01:19:51]} {[%emt 00:05:53]} Nbd7 {[%clk 01:05:16]} {[%emt 00:01:48]} 10.
Nxe4 {[%clk 01:10:47]} {[%emt 00:09:34]} dxe4 {[%clk 01:05:22]} {[%emt
00:00:24]} 11. g3 {[%clk 01:11:00]} {[%emt 00:00:16]} O-O {[%clk 00:55:44]}
{[%emt 00:10:08]} 12. Qc2 {[%clk 01:04:10]} {[%emt 00:07:19]} h6 {[%clk
00:54:06]} {[%emt 00:02:10]} 13. Bxf6 {[%clk 01:04:34]} {[%emt 00:00:05]} Nxf6
{[%clk 00:54:33]} {[%emt 00:00:03]} 14. Be2 {[%clk 01:00:34]} {[%emt 00:04:30]}
Qc7 {[%clk 00:52:20]} {[%emt 00:02:44]} 15. O-O {[%clk 00:57:47]} {[%emt
00:03:17]} c5 {[%clk 00:49:56]} {[%emt 00:02:55]} 16. Rad1 {[%clk 00:56:44]}
{[%emt 00:01:31]} Rab8 {[%clk 00:48:56]} {[%emt 00:01:30]} 17. dxc5 {[%clk
00:44:10]} {[%emt 00:13:04]} bxc5 {[%clk 00:44:01]} {[%emt 00:05:26]} 18. Rd2
{[%clk 00:43:51]} {[%emt 00:00:48]} Be5 {[%clk 00:42:59]} {[%emt 00:01:33]} 19.
Rfd1 {[%clk 00:38:08]} {[%emt 00:06:13]} Rb6 {[%clk 00:39:20]} {[%emt
00:04:08]} 20. Bc4 {[%clk 00:34:53]} {[%emt 00:03:45]} Rfb8 {[%clk 00:38:11]}
{[%emt 00:01:39]} 21. b3 {[%clk 00:35:03]} {[%emt 00:00:21]} g5 {[%clk
00:36:36]} {[%emt 00:02:04]} 22. Ng2 {[%clk 00:35:28]} {[%emt 00:00:05]} Kg7
{[%clk 00:37:04]} {[%emt 00:00:03]} 23. Rf1 {[%clk 00:29:32]} {[%emt 00:06:26]}
Rd6 {[%clk 00:33:22]} {[%emt 00:04:12]} 24. Rxd6 {[%clk 00:29:54]} {[%emt
00:00:07]} Qxd6 {[%clk 00:33:44]} {[%emt 00:00:08]} 25. Rd1 {[%clk 00:30:20]}
{[%emt 00:00:04]} Qc7 {[%clk 00:33:43]} {[%emt 00:00:31]} 26. Ne1 {[%clk
00:28:55]} {[%emt 00:01:55]} h5 {[%clk 00:19:00]} {[%emt 00:15:14]} 27. f4
{[%clk 00:20:16]} {[%emt 00:09:08]} exf3 {[%clk 00:19:25]} {[%emt 00:00:07]} 28.
Nxf3 {[%clk 00:20:42]} {[%emt 00:00:03]} g4 {[%clk 00:18:20]} {[%emt 00:01:36]}
29. Nxe5 {[%clk 00:19:58]} {[%emt 00:01:13]} Qxe5 {[%clk 00:18:46]} {[%emt
00:00:03]} 30. Qf2 {[%clk 00:20:22]} {[%emt 00:00:06]} Ne4 {[%clk 00:12:23]}
{[%emt 00:06:55]} 31. Qf4 {[%clk 00:20:45]} {[%emt 00:00:06]} Qxf4 {[%clk
00:12:51]} {[%emt 00:00:02]} 32. exf4 {[%clk 00:21:08]} {[%emt 00:00:06]} Nxc3
{[%clk 00:08:45]} {[%emt 00:04:36]} 33. Rd7 {[%clk 00:21:31]} {[%emt 00:00:08]}
Kf6 {[%clk 00:09:14]} {[%emt 00:00:02]} 34. Rxa7 {[%clk 00:20:28]} {[%emt
00:01:32]} Rd8 {[%clk 00:09:39]} {[%emt 00:00:05]} 35. a4 {[%clk 00:19:01]}
{[%emt 00:01:58]} Rd1+ {[%clk 00:10:04]} {[%emt 00:00:05]} 36. Kg2 {[%clk
00:16:17]} {[%emt 00:03:13]} Rd2+ {[%clk 00:06:36]} {[%emt 00:03:58]} 37. Kg1
{[%clk 00:16:33]} {[%emt 00:00:13]} Rd1+ {[%clk 00:03:51]} {[%emt 00:03:17]} 38.
Kg2 {[%clk 00:16:58]} {[%emt 00:00:04]} Nd5 {[%clk 00:02:00]} {[%emt 00:02:21]}
39. Bxd5 {[%clk 00:13:57]} {[%emt 00:03:30]} exd5 {[%clk 00:02:08]} {[%emt
00:00:23]} 40. Rc7 {[%clk 00:10:17]} {[%emt 00:04:10]} Rd2+ {[%clk 00:01:15]}
{[%emt 00:01:23]} 41. Kg1 {[%clk 00:05:00]} {[%emt 00:05:47]} Rd1+ {[%clk
00:15:55]} {[%emt 00:35:50]} 42. Kf2 {[%clk 00:54:40]} {[%emt 00:00:49]} Rd2+
{[%clk 00:16:23]} {[%emt 00:00:03]} 43. Kg1 {[%clk 00:54:59]} {[%emt 00:00:11]}
Rd1+ {[%clk 00:11:37]} {[%emt 00:05:16]} 44. Kf2 {[%clk 00:54:38]} {[%emt
00:00:18]} Ke5 {[%clk 00:11:37]} 1/2-1/2

[Event "FIDE Grand Swiss 2023"]
[Site "Villa Marina, Douglas, Isle of Man, Isle Of Man"]
[Date "2023.11.04"]
[Round "10.22"]
[White "Matlakov, Maxim"]
[Black "Saric, Ivan"]
[Result "1/2-1/2"]
[TimeControl "40/90 + 30 + 30s/move"]
[WhiteFideId "4168003"]
[BlackFideId "14508150"]
[WhiteElo "2674"]
[BlackElo "2647"]

1. d4 {[%clk 01:40:56]} {[%emt 00:00:04]} Nf6 {[%clk 01:40:54]} {[%emt
00:00:06]} 2. c4 {[%clk 01:41:20]} {[%emt 00:00:07]} e6 {[%clk 01:41:20]}
{[%emt 00:00:04]} 3. Nf3 {[%clk 01:41:34]} {[%emt 00:00:15]} d5 {[%clk
01:41:46]} {[%emt 00:00:05]} 4. g3 {[%clk 01:41:02]} {[%emt 00:01:02]} Bb4+
{[%clk 01:41:21]} {[%emt 00:00:55]} 5. Bd2 {[%clk 01:40:26]} {[%emt 00:01:05]}
a5 {[%clk 01:41:47]} {[%emt 00:00:05]} 6. Bg2 {[%clk 01:40:26]} {[%emt
00:00:29]} O-O {[%clk 01:42:08]} {[%emt 00:00:09]} 7. Qc1 {[%clk 01:40:06]}
{[%emt 00:00:51]} Nbd7 {[%clk 01:41:21]} {[%emt 00:01:17]} 8. O-O {[%clk
01:38:39]} {[%emt 00:01:56]} Be7 {[%clk 01:41:47]} {[%emt 00:00:04]} 9. Rd1
{[%clk 01:37:36]} {[%emt 00:01:33]} c6 {[%clk 01:41:30]} {[%emt 00:00:48]} 10.
Bf4 {[%clk 01:37:44]} {[%emt 00:00:22]} a4 {[%clk 01:40:59]} {[%emt 00:01:02]}
11. Qc2 {[%clk 01:37:18]} {[%emt 00:00:55]} h6 {[%clk 01:39:27]} {[%emt
00:02:01]} 12. a3 {[%clk 01:37:31]} {[%emt 00:00:18]} Ne4 {[%clk 01:37:11]}
{[%emt 00:02:46]} 13. Nc3 {[%clk 01:33:39]} {[%emt 00:04:22]} Nxc3 {[%clk
01:35:42]} {[%emt 00:01:59]} 14. Qxc3 {[%clk 01:33:58]} {[%emt 00:00:11]} f5
{[%clk 01:24:34]} {[%emt 00:11:38]} 15. Ne5 {[%clk 01:26:03]} {[%emt 00:08:25]}
g5 {[%clk 01:14:12]} {[%emt 00:10:52]} 16. Nxd7 {[%clk 01:15:02]} {[%emt
00:11:31]} Bxd7 {[%clk 01:13:39]} {[%emt 00:01:03]} 17. Be5 {[%clk 01:14:13]}
{[%emt 00:01:18]} Qa5 {[%clk 01:02:45]} {[%emt 00:11:24]} 18. Qd3 {[%clk
01:06:06]} {[%emt 00:08:37]} Bf6 {[%clk 00:57:11]} {[%emt 00:06:04]} 19. Bxf6
{[%clk 00:49:27]} {[%emt 00:17:09]} Rxf6 {[%clk 00:56:55]} {[%emt 00:00:46]} 20.
b4 {[%clk 00:47:01]} {[%emt 00:02:57]} axb3 {[%clk 00:57:03]} {[%emt 00:00:22]}
21. Qxb3 {[%clk 00:42:35]} {[%emt 00:04:55]} Ra7 {[%clk 00:57:27]} {[%emt
00:00:06]} 22. h4 {[%clk 00:28:27]} {[%emt 00:14:38]} dxc4 {[%clk 00:52:27]}
{[%emt 00:05:31]} 23. Qxc4 {[%clk 00:26:34]} {[%emt 00:02:23]} gxh4 {[%clk
00:52:49]} {[%emt 00:00:08]} 24. gxh4 {[%clk 00:21:00]} {[%emt 00:06:03]} Rg6
{[%clk 00:52:58]} {[%emt 00:00:22]} 25. Kf1 {[%clk 00:16:21]} {[%emt 00:05:09]}
Qc7 {[%clk 00:51:38]} {[%emt 00:01:49]} 26. Qb3 {[%clk 00:10:48]} {[%emt
00:06:04]} Qh2 {[%clk 00:42:06]} {[%emt 00:10:02]} 27. Qh3 {[%clk 00:10:43]}
{[%emt 00:00:34]} Qxh3 {[%clk 00:42:11]} {[%emt 00:00:25]} 28. Bxh3 {[%clk
00:11:12]} {[%emt 00:00:01]} b5 {[%clk 00:41:44]} {[%emt 00:00:57]} 29. Bg2
{[%clk 00:08:11]} {[%emt 00:03:30]} Kf7 {[%clk 00:38:36]} {[%emt 00:03:38]} 30.
Rac1 {[%clk 00:06:21]} {[%emt 00:02:20]} Rxa3 {[%clk 00:38:12]} {[%emt
00:00:54]} 31. Bxc6 {[%clk 00:06:38]} {[%emt 00:00:13]} Bxc6 {[%clk 00:36:31]}
{[%emt 00:02:11]} 32. Rxc6 {[%clk 00:06:39]} {[%emt 00:00:29]} Rh3 {[%clk
00:36:56]} {[%emt 00:00:05]} 33. e3 {[%clk 00:06:56]} {[%emt 00:00:13]} f4
{[%clk 00:32:06]} {[%emt 00:05:20]} 34. exf4 {[%clk 00:05:29]} {[%emt
00:01:56]} Rxh4 {[%clk 00:32:12]} {[%emt 00:00:24]} 35. Rc5 {[%clk 00:02:45]}
{[%emt 00:03:14]} Rh1+ {[%clk 00:30:47]} {[%emt 00:01:55]} 36. Ke2 {[%clk
00:03:12]} {[%emt 00:00:04]} Rxd1 {[%clk 00:31:14]} {[%emt 00:00:03]} 37. Kxd1
{[%clk 00:03:38]} {[%emt 00:00:03]} Rf6 {[%clk 00:30:28]} {[%emt 00:01:16]} 38.
d5 {[%clk 00:03:13]} {[%emt 00:00:56]} exd5 {[%clk 00:30:29]} {[%emt 00:00:29]}
39. Rxb5 {[%clk 00:02:33]} {[%emt 00:01:10]} d4 {[%clk 00:29:35]} {[%emt
00:01:24]} 40. Ke2 {[%clk 00:00:46]} {[%emt 00:02:16]} Rxf4 {[%clk 00:29:48]}
{[%emt 00:00:17]} 41. Kd3 {[%clk 00:48:34]} {[%emt 00:02:41]} Kg6 {[%clk
01:14:42]} {[%emt 00:05:36]} 42. Rd5 {[%clk 00:48:06]} {[%emt 00:00:58]} Rxf2
{[%clk 01:13:55]} {[%emt 00:01:17]} 43. Rxd4 {[%clk 00:47:58]} {[%emt
00:00:39]} Kg5 {[%clk 01:14:19]} {[%emt 00:00:05]} 44. Ke3 {[%clk 00:48:15]}
{[%emt 00:00:14]} Rf6 {[%clk 01:14:24]} {[%emt 00:00:25]} 45. Ke2 {[%clk
00:47:21]} {[%emt 00:01:24]} h5 {[%clk 01:14:48]} {[%emt 00:00:05]} 46. Rd1
{[%clk 00:47:46]} {[%emt 00:00:05]} h4 {[%clk 01:14:54]} {[%emt 00:00:24]} 47.
Rf1 {[%clk 00:47:55]} {[%emt 00:00:21]} h3 {[%clk 01:15:11]} {[%emt 00:00:14]}
48. Rxf6 {[%clk 00:48:20]} Kxf6 {[%emt 00:00:07]} 1/2-1/2

[Event "FIDE Grand Swiss 2023"]
[Site "Villa Marina, Douglas, Isle of Man, Isle Of Man"]
[Date "2023.11.04"]
[Round "10.30"]
[White "Volokitin, Andrei"]
[Black "L'ami, Erwin"]
[Result "1-0"]
[TimeControl "40/90 + 30 + 30s/move"]
[WhiteFideId "14107090"]
[BlackFideId "1007998"]
[WhiteElo "2664"]
[BlackElo "2627"]

1. e4 {[%clk 01:40:57]} {[%emt 00:00:02]} e5 {[%clk 01:40:49]} {[%emt
00:00:11]} 2. Nf3 {[%clk 01:41:21]} {[%emt 00:00:06]} Nc6 {[%clk 01:41:09]}
{[%emt 00:00:08]} 3. Bc4 {[%clk 01:41:45]} {[%emt 00:00:07]} Bc5 {[%clk
01:40:57]} {[%emt 00:00:42]} 4. O-O {[%clk 01:41:08]} {[%emt 00:01:08]} Nf6
{[%clk 01:40:45]} {[%emt 00:00:41]} 5. d3 {[%clk 01:41:31]} {[%emt 00:00:08]}
h6 {[%clk 01:40:07]} {[%emt 00:01:08]} 6. c3 {[%clk 01:41:35]} {[%emt
00:00:26]} d6 {[%clk 01:40:29]} {[%emt 00:00:08]} 7. Re1 {[%clk 01:41:37]}
{[%emt 00:00:27]} O-O {[%clk 01:40:31]} {[%emt 00:00:28]} 8. h3 {[%clk
01:41:04]} {[%emt 00:01:03]} a6 {[%clk 01:40:18]} {[%emt 00:00:44]} 9. a4
{[%clk 01:41:21]} {[%emt 00:00:13]} Ba7 {[%clk 01:38:12]} {[%emt 00:02:37]} 10.
Nbd2 {[%clk 01:41:19]} {[%emt 00:00:31]} Re8 {[%clk 01:38:00]} {[%emt
00:00:42]} 11. b4 {[%clk 01:39:44]} {[%emt 00:02:06]} Be6 {[%clk 01:36:32]}
{[%emt 00:01:57]} 12. Bxe6 {[%clk 01:39:06]} {[%emt 00:01:08]} Rxe6 {[%clk
01:36:52]} {[%emt 00:00:09]} 13. Qc2 {[%clk 01:29:57]} {[%emt 00:09:40]} Ne7
{[%clk 01:27:07]} {[%emt 00:10:14]} 14. d4 {[%clk 01:18:15]} {[%emt 00:12:13]}
Ng6 {[%clk 01:25:26]} {[%emt 00:02:11]} 15. d5 {[%clk 00:56:11]} {[%emt
00:22:35]} Re8 {[%clk 01:23:49]} {[%emt 00:02:05]} 16. c4 {[%clk 00:54:27]}
{[%emt 00:02:15]} a5 {[%clk 01:01:44]} {[%emt 00:22:35]} 17. bxa5 {[%clk
00:53:58]} {[%emt 00:00:59]} Nd7 {[%clk 01:00:15]} {[%emt 00:01:59]} 18. Nb3
{[%clk 00:43:30]} {[%emt 00:10:59]} Nc5 {[%clk 00:34:45]} {[%emt 00:25:59]} 19.
Be3 {[%clk 00:36:16]} {[%emt 00:07:44]} Nxb3 {[%clk 00:30:38]} {[%emt
00:04:38]} 20. Qxb3 {[%clk 00:36:44]} {[%emt 00:00:02]} Bxe3 {[%clk 00:29:54]}
{[%emt 00:01:13]} 21. Rxe3 {[%clk 00:37:05]} {[%emt 00:00:10]} Nf8 {[%clk
00:30:00]} {[%emt 00:00:24]} 22. Qxb7 {[%clk 00:16:44]} {[%emt 00:20:52]} Rb8
{[%clk 00:23:41]} {[%emt 00:06:48]} 23. Qc6 {[%clk 00:14:15]} {[%emt 00:02:59]}
Nd7 {[%clk 00:23:49]} {[%emt 00:00:22]} 24. Nd2 {[%clk 00:11:57]} {[%emt
00:02:48]} Nc5 {[%clk 00:21:45]} {[%emt 00:02:33]} 25. Raa3 {[%clk 00:11:41]}
{[%emt 00:00:47]} Qc8 {[%clk 00:20:32]} {[%emt 00:01:43]} 26. Reb3 {[%clk
00:01:54]} {[%emt 00:10:17]} Nxb3 {[%clk 00:09:28]} {[%emt 00:11:34]} 27. Rxb3
{[%clk 00:02:22]} {[%emt 00:00:03]} Rf8 {[%clk 00:08:03]} {[%emt 00:01:54]} 28.
a6 {[%clk 00:01:48]} {[%emt 00:01:04]} Rxb3 {[%clk 00:07:47]} 29. Nxb3 {[%clk
00:02:17]} {[%emt 00:00:48]} f5 {[%clk 00:07:05]} {[%emt 00:01:12]} 30. a7
{[%clk 00:02:07]} {[%emt 00:00:40]} fxe4 {[%clk 00:06:23]} {[%emt 00:01:11]} 31.
Nd2 {[%clk 00:02:09]} {[%emt 00:00:28]} Qa8 {[%clk 00:01:41]} {[%emt 00:05:12]}
32. Qxc7 {[%clk 00:02:23]} {[%emt 00:00:16]} Rf7 {[%clk 00:01:39]} {[%emt
00:00:32]} 33. Qb8+ {[%clk 00:02:36]} {[%emt 00:00:17]} Rf8 {[%clk 00:02:06]}
{[%emt 00:00:04]} 34. Qc7 {[%clk 00:02:01]} {[%emt 00:01:05]} Rf7 {[%clk
00:02:26]} {[%emt 00:00:09]} 35. Qb8+ {[%clk 00:01:44]} {[%emt 00:00:47]} Rf8
{[%clk 00:02:52]} {[%emt 00:00:04]} 36. Qxa8 {[%clk 00:01:49]} {[%emt
00:00:26]} Rxa8 {[%clk 00:03:19]} {[%emt 00:00:03]} 37. Nxe4 {[%clk 00:02:16]}
{[%emt 00:00:03]} Rxa7 {[%clk 00:03:21]} {[%emt 00:00:28]} 38. Nxd6 {[%clk
00:02:43]} {[%emt 00:00:03]} Rc7 {[%clk 00:01:35]} {[%emt 00:02:16]} 39. a5
{[%clk 00:02:31]} {[%emt 00:00:42]} Kf8 {[%clk 00:01:57]} {[%emt 00:00:07]} 40.
a6 {[%clk 00:02:53]} {[%emt 00:00:08]} Ra7 {[%clk 00:01:14]} {[%emt 00:01:13]}
41. c5 {[%clk 00:43:15]} {[%emt 00:10:08]} Rxa6 {[%clk 00:50:08]} {[%emt
00:01:36]} 42. c6 {[%clk 00:41:22]} {[%emt 00:02:23]} Ra1+ {[%clk 00:40:54]}
{[%emt 00:09:44]} 43. Kh2 {[%clk 00:41:50]} {[%emt 00:00:01]} Rc1 {[%clk
00:41:07]} {[%emt 00:00:17]} 44. Kg3 {[%clk 00:26:03]} {[%emt 00:16:18]} Rc3+
{[%clk 00:37:54]} {[%emt 00:03:43]} 45. Kg4 {[%clk 00:24:22]} {[%emt 00:02:10]}
g6 {[%clk 00:37:32]} {[%emt 00:00:52]} 46. Nb5 {[%clk 00:24:00]} {[%emt
00:00:53]} Rc2 {[%clk 00:29:15]} {[%emt 00:08:47]} 47. c7 {[%clk 00:23:58]}
{[%emt 00:00:33]} Ke7 {[%clk 00:29:33]} {[%emt 00:00:10]} 48. d6+ {[%clk
00:24:14]} {[%emt 00:00:15]} Kd7 {[%clk 00:29:19]} {[%emt 00:00:44]} 49. Na7
{[%clk 00:24:36]} {[%emt 00:00:08]} 1-0